Cogmind - Beta 10.2 @@@ ROGUE MODE // 2021.06.06 @ 14:47:31 Player: sentrybuster Result: Destroyed by H-88 Terminator with Heavy Machine Gun Performance ------------- Evolutions (9) 4500 Regions Visited (12) 2400 Robots Destroyed (80) 400 Value Destroyed (3227) 3227 Prototype IDs (31) 620 Alien Tech Used (1) 200 Bonus (180) 180 TOTAL SCORE: 11527 Bonus ------- High Alert Combat Kills 180 Cogmind --------- Core Integrity 0/1600 Matter 51/300 Energy 100/100 System Corruption 7% Temperature Cool (0) Movement Core (50) Location -1/Access Parts ------- > --- POWER (2) -------- (None) > --- PROPULSION (6) --- (None) > --- UTILITY (14) ----- Advanced Signal Interpreter Improved Melee Analysis Suite > --- WEAPON (3) ------- (None) > --- INVENTORY (4) ---- Femtoactuators Stasis Generator Improved Arc Projector Z-bomb Delivery System Peak State ------------ > --- POWER ------------ Light Antimatter Reactor > --- PROPULSION ------- High-density Centrium Leg Cooled VTOL Module Cooled Impulse Thruster > --- UTILITY ---------- Improved Energy Well Advanced Energy Well Experimental Energy Well Advanced Signal Interpreter EM Disruption Field Advanced Hacking Suite Advanced Hacking Suite Advanced Hacking Suite Advanced Hacking Suite Improved System Shield > --- WEAPON ----------- Improved Potential Cannon > --- INVENTORY -------- Femtoactuators Stasis Generator Z-bomb Delivery System Molecular Scythe [Rating: 125] Favorites ----------- Power Micro Nuclear Core Engine Light Ion Engine Power Core Micro Nuclear Core Reactor Light Antimatter Reactor Propulsion Cesium-ion Thruster Treads Advanced Heavy Siege Treads Leg High-density Centrium Leg Wheel Compact Wheel Flight Unit Cesium-ion Thruster Utility Advanced Hacking Suite Device Advanced Sensor Array Storage Small Storage Unit Processor Advanced Signal Interpreter Hackware Advanced Hacking Suite Protection Improved Light Armor Plating Artifact Stasis Generator Weapon Greatsword Energy Gun EM Pulse Gun Energy Cannon Improved Potential Cannon Ballistic Gun KE Penetrator Ballistic Cannon Enhanced Gauss Cannon Launcher Z-bomb Delivery System Special Weapon Mining Laser Impact Weapon Impact Mace Slashing Weapon Greatsword Build | -11 -10 -9 -8 -7 -6 -5 -4 -3 -3 -2 -2 -1 ------- Run | Scr Mat Mat Mat Fac Fac Fac Fac Res Qua Res Tes Acc Slots Evolved 18 | . . 2 2 2 2 2 2 2 . 2 . 2 Power 1 | . . . . . . 1 . . . . . . Propulsion 4 | . . 1 . . 1 . . 1 . 1 . . Utility 12 | . . 1 2 2 1 1 2 1 . 1 . 1 Weapon 1 | . . . . . . . . . . . . 1 Parts Attached 133 | 6 3 14 21 12 12 8 3 8 5 1 19 21 Power 15 | 1 . 1 2 1 2 2 . 1 1 . 1 3 Engine 4 | 1 . 1 1 . . . . . . . . 1 Core 7 | . . . 1 1 2 2 . 1 . . . . Reactor 4 | . . . . . . . . . 1 . 1 2 Propulsion 33 | 2 . 5 12 1 1 2 1 2 1 . 1 5 Treads 2 | . . . . . . . . . . . . 2 Leg 7 | . . 1 2 . . . . . . . 1 3 Wheel 9 | 2 . 4 3 . . . . . . . . . Hover . | . . . . . . . . . . . . . Flight 15 | . . . 7 1 1 2 1 2 1 . . . Utility 45 | 1 1 3 2 9 8 4 2 1 2 . 8 4 Device 12 | . 1 1 1 1 . 1 . 1 1 . 4 1 Storage 7 | 1 . 1 1 . . . . . . . 4 . Processor 8 | . . 1 . 4 1 . . . . . . 2 Hackware 16 | . . . . 3 7 3 2 . . . . 1 Protection 1 | . . . . 1 . . . . . . . . Artifact 1 | . . . . . . . . . 1 . . . Weapon 40 | 2 2 5 5 1 1 . . 4 1 1 9 9 Energy Gun 7 | 1 1 2 2 . . . . . . . . 1 Energy Cannon 3 | . . . . . . . . . . . 3 . Ballistic Gun 5 | 1 . 1 1 . . . . . . . . 2 Ballistic Cannon 6 | . . . . . . . . 4 . 1 1 . Launcher 6 | . . . . . . . . . . . 3 3 Special Weapon 1 | . 1 . . . . . . . . . . . Impact Weapon 1 | . . . . . . . . . . . 1 . Slashing Weapon 11 | . . 2 2 1 1 . . . 1 . 1 3 Piercing Weapon . | . . . . . . . . . . . . . Special Melee Weapon . | . . . . . . . . . . . . . Unidentified Prototypes 17 | . . . . . 1 . . . 4 . 12 . Parts Lost 51 | . . 2 10 2 . . 2 9 . . 8 18 Power 6 | . . . 1 . . . . 1 . . 1 3 Propulsion 20 | . . 1 6 . . . 1 4 . . 1 7 Utility 18 | . . . 2 2 . . . 4 . . 5 5 Weapon 7 | . . 1 1 . . . 1 . . . 1 3 Highest Loss Streak 7 | . . 1 4 2 . . 2 7 . . 6 7 Average Slot Usage (%) 73 | . 96 92 63 80 90 88 88 62 49 44 52 47 Engine 2 | . 14 11 2 2 . . . . . . . . Core 3 | . . . 4 4 6 10 10 4 . . . . Leg 2 | . . 7 4 . . . . . . . 2 7 Wheel 5 | . 28 24 14 . . . . . . . . . Flight 10 | . . . 1 23 23 17 15 8 8 8 7 . Device 4 | . 10 5 2 7 6 5 5 3 . . 2 . Storage 8 | . 14 18 9 9 6 5 5 1 . . 6 9 Processor 8 | . . 1 8 9 13 11 10 9 9 5 4 9 Hackware 14 | . . . . 7 19 26 36 32 23 21 19 9 Protection 1 | . . . . 4 6 2 . . . . . . Energy Gun 1 | . 14 10 1 . . . . . . . . . Ballistic Gun 1 | . 9 2 2 . . . . . . . . 3 Slashing Weapon 5 | . . 8 13 8 6 5 4 . 2 4 1 2 Naked Turns . | . . . . . . . . . . . . . Heaviest Build 53 | 9 11 21 22 19 19 26 24 28 16 16 53 41 Greatest Support 85 | 26 26 42 42 19 19 36 38 19 23 16 32 85 Greatest Overweight (x) 2 | . . 1 2 . . . . 2 . . 1 . Average Overweight (x) . | . . . . . . . . . . . . . Largest Inventory Capacity 6 | 6 6 6 6 6 6 6 6 6 4 4 4 4 Average Capacity 5 | 5 6 6 6 6 6 6 6 4 4 4 4 4 Most Carried 6 | 4 6 6 6 6 6 6 6 6 4 4 4 4 Average Carried 5 | 2 5 5 5 5 5 5 5 4 3 3 3 3 Final Capacity 6 | 6 6 6 6 6 6 6 6 4 4 4 4 4 Final Carried 6 | 4 6 6 5 6 6 6 5 3 4 4 4 4 Class Distribution -------------------- 27% | Mutant 22% | Hacker-Scout 15% | Wizard-Scout 15% | Hacker-Mutant 7% | Wizard-Sprinter 5% | Wizard-Mutant 4% | Scavenger-Mutant Dominant Class ---------------- Mutant | -10/Materials Mutant | -9/Materials Mutant | -8/Materials Mutant | -7/Factory Hacker-Scout | -6/Factory Wizard-Scout | -5/Factory Wizard-Scout | -4/Factory Wizard-Mutant | -3/Research Wizard-Sprinter | -3/Quarantine Wizard-Sprinter | -2/Research Wizard-Mutant | -2/Testing Hacker-Mutant | -1/Access Resources | -11 -10 -9 -8 -7 -6 -5 -4 -3 -3 -2 -2 -1 ----------- Run | Scr Mat Mat Mat Fac Fac Fac Fac Res Qua Res Tes Acc Matter Collected 1874 | 224 68 160 176 42 11 97 . 29 253 . . 814 Remotely . | . . . . . . . . . . . . . Salvage Created 3604 | . 78 589 880 65 150 97 . 29 253 . 498 965 Parts 192 | . 4 29 45 9 11 8 . 3 16 . 23 44 Haulers Intercepted 3 | . . 1 . . . . . . . . 1 1 Recyclers Shooed 6 | . . . 1 . . . . . 2 . . 3 Parts Field Recycled 1 | . . . . . . . . . . . 1 . Retrieved Matter 8 | . . . . . . . . . . . 8 . Parts Self-Destructed . | . . . . . . . . . . . . . Prevented . | . . . . . . . . . . . . . Kills | -11 -10 -9 -8 -7 -6 -5 -4 -3 -3 -2 -2 -1 ------- Run | Scr Mat Mat Mat Fac Fac Fac Fac Res Qua Res Tes Acc Combat Hostiles Destroyed 50 | . 1 7 19 1 2 1 . 1 1 . 8 9 Melee 33 | . . 2 18 1 2 1 . . 1 . . 8 Guns 6 | . 1 4 1 . . . . . . . . . Cannons 4 | . . . . . . . . 1 . . 3 . AOE 6 | . . . . . . . . . . . 5 1 Classes Destroyed 16 | . 2 8 3 1 . . . . . . 2 . Worker 6 | . . 2 . . . . . . . . 2 2 Builder 2 | . . . 1 . . . . . . . 1 . Tunneler 3 | . . 1 . . 1 . . . . . . 1 Hauler 3 | . . 1 . . . . . . . . 1 1 Recycler 5 | . . 1 1 . . . . . 1 . . 2 Mechanic 1 | . . 1 . . . . . . . . . . Operator 1 | . . . . . . . . . . . 1 . Watcher 8 | . 1 . 1 1 1 1 . . 1 . 1 1 Swarmer 8 | . . . 7 . . . . 1 . . . . Grunt 16 | . 1 3 7 . 1 1 . . . . 1 2 Brawler 2 | . . 1 1 . . . . . . . . . Duelist 1 | . . 1 . . . . . . . . . . Researcher 1 | . . . . . . . . . . . 1 . Sentry 4 | . . 2 2 . . . . . . . . . Hunter 7 | . . . 2 . . . . . . . 1 4 Programmer 12 | . . . . 1 1 . . . 1 . 6 3 Best Kill Streak 6 | . 1 4 4 1 1 1 . 1 2 . 6 3 Combat Bots Only 4 | . 1 2 4 1 1 1 . 1 1 . 4 3 Max Kills in Single Turn 3 | . 1 1 1 1 1 1 . 1 1 . 3 1 Gunslinging . | . . . . . . . . . . . . . Exploded 1 | . . . . . . . . . . . 1 1 Melee 1 | . . 1 1 1 1 1 . . 1 . . 1 Uniques/NPCs Destroyed . | . . . . . . . . . . . . . Combat | -11 -10 -9 -8 -7 -6 -5 -4 -3 -3 -2 -2 -1 -------- Run | Scr Mat Mat Mat Fac Fac Fac Fac Res Qua Res Tes Acc Damage Taken 8249 | . 56 277 1030 62 167 59 279 910 70 30 1341 3968 Core 2940 | . 23 32 212 14 31 . 42 445 46 . 484 1611 Absorbed by Shields . | . . . . . . . . . . . . . Core Remaining (%) 86 | 100 90 92 61 98 96 100 96 . 62 . 66 . Volleys Fired 100 | . 15 26 11 . . . . 7 . 2 15 24 Largest 3 | . 2 2 2 . . . . 1 . 1 1 3 Hottest 200 | . 100 80 110 . . . . 57 . 57 200 96 Shots Fired 133 | . 27 38 18 . . . . 7 . 2 15 26 Gun 100 | . 24 38 18 . . . . . . . . 20 Cannon 24 | . . . . . . . . 7 . 2 15 . Launcher 6 | . . . . . . . . . . . . 6 Special 3 | . 3 . . . . . . . . . . . Kinetic 53 | . 12 5 4 . . . . 7 . 2 3 20 Thermal 15 | . 3 . . . . . . . . . 12 . Explosive 6 | . . . . . . . . . . . . 6 Electromagnetic 59 | . 12 33 14 . . . . . . . . . Robot Hit Streak 10 | . 4 8 10 . . . . 2 . . 9 6 Robot Miss Streak 4 | . 4 3 2 . . . . . . . 2 3 Penetration Max 1 | . . . . . . . . . . . . 1 Secondary Targets 1 | . 1 . . . . . . . . . . . Max Gunslinging Chain 1 | . 1 . . . . . . . . . . . Shots Hit Robots 206 | . 13 38 64 5 8 5 3 1 9 . 9 51 Core Hits 95 | . 3 17 24 2 3 2 . 1 3 . 15 25 Critical Hits 9 | . . . 2 . . . . . . . 2 5 Critical Kills 2 | . . . 1 . . . . . . . 1 . Critical Parts Destroyed 7 | . . . 1 . . . . . . . 1 5 Melee Attacks 264 | . . 16 73 27 31 10 31 . 14 1 8 53 Impact . | . . . . . . . . . . . . . Slashing 264 | . . 16 73 27 31 10 31 . 14 1 8 53 Piercing . | . . . . . . . . . . . . . Sneak Attacks 18 | . . 6 3 . 2 1 . . 1 . . 5 Combat Hostiles 1 | . . . . . . 1 . . . . . . Follow-up Attacks 12 | . . . 12 . . . . . . . . . Damage Inflicted 13865 | . 188 1134 1903 270 665 393 162 36 688 . 4644 3782 Guns 1090 | . 188 344 133 . . . . . . . . 425 Cannons 1857 | . . . . . . . . 36 . . 1821 . Explosions 3583 | . . . . . . . . . . . 2768 815 Melee 7292 | . . 790 1770 270 665 393 162 . 688 . 55 2499 Ramming 43 | . . . . . . . . . . . . 43 Kinetic 624 | . 69 69 25 . . . . 36 . . . 425 Thermal 4439 | . . . . . . . . . . . 4439 . Explosive 965 | . . . . . . . . . . . 150 815 Electromagnetic 502 | . 119 275 108 . . . . . . . . . Impact . | . . . . . . . . . . . . . Slashing 7292 | . . 790 1770 270 665 393 162 . 688 . 55 2499 Piercing . | . . . . . . . . . . . . . Highest Corruption 7 | . . . . 2 . . 2 . 1 . 2 7 Average Corruption 2 | . . . . 1 . . 1 . 1 . 1 5 Corruption Purged . | . . . . . . . . . . . . . Effects 22 | . . . . 1 . . 1 . . . 1 19 Message Errors 4 | . . . . 1 . . . . . . 1 2 Matter Fused 4 | . . . . . . . . . . . . 4 Heat Flow Errors 3 | . . . . . . . 1 . . . . 2 Energy Discharges 3 | . . . . . . . . . . . . 3 Data Loss (minor) 2 | . . . . . . . . . . . . 2 Data Loss (major) 1 | . . . . . . . . . . . . 1 Targeting Errors 5 | . . . . . . . . . . . . 5 Overload Shots . | . . . . . . . . . . . . . Overflow Damage 3026 | . . 113 303 38 167 139 7 . 212 . 1438 609 Projectiles 591 | . . . . . . . . . . . 591 . Explosions 1102 | . . . . . . . . . . . 847 255 Melee 1333 | . . 113 303 38 167 139 7 . 212 . . 354 Knockbacks . | . . . . . . . . . . . . . Impact . | . . . . . . . . . . . . . Kinetic . | . . . . . . . . . . . . . Secondary . | . . . . . . . . . . . . . Self-Inflicted Damage 18 | . . . . . . . . . . . . 18 Shots . | . . . . . . . . . . . . . Rammed 12 | . . . . . . . . . 3 . . 9 Targets Rammed 12 | . . . . . . . . . 3 . . 9 Kicked . | . . . . . . . . . . . . . Crushed . | . . . . . . . . . . . . . Highest Temperature 360 | . 70 141 294 . . . 170 3 . . 360 150 Average Temperature 88 | . 26 43 148 . . . 101 2 . . 145 88 Received Heat Transfer 672 | . 30 117 216 18 45 27 18 75 . 9 18 99 Siege Activations . | . . . . . . . . . . . . . Robots Corrupted 1 | . . 1 . . . . . . . . . . Combat Hostiles 1 | . . 1 . . . . . . . . . . Parts Fried 3 | . . 2 1 . . . . . . . . . Impact Corruptions . | . . . . . . . . . . . . . Robots Melted . | . . . . . . . . . . . . . Combat Hostiles . | . . . . . . . . . . . . . Parts Melted 4 | . . . . . . . . . . . 4 . Heat Transferred 2610 | . . . . . . . . . . . 2610 . Parts Sabotaged . | . . . . . . . . . . . . . Parts Stolen . | . . . . . . . . . . . . . Parts Stripped . | . . . . . . . . . . . . . Power Chain Reactions . | . . . . . . . . . . . . . Missiles Intercepted . | . . . . . . . . . . . . . Alert | -11 -10 -9 -8 -7 -6 -5 -4 -3 -3 -2 -2 -1 ------- Run | Scr Mat Mat Mat Fac Fac Fac Fac Res Qua Res Tes Acc Peak Influence 797 | . 79 326 424 687 379 562 348 155 153 154 544 797 Initial 326 | . . 33 52 192 326 89 199 113 51 85 86 316 Average 255 | . 45 153 220 352 280 330 229 108 92 113 194 442 Maximum Alert Level 3 | . . 1 2 2 1 2 1 . . . 2 3 Low Security (%) 42 | 100 100 66 53 1 22 34 27 100 100 100 79 . Level 1 42 | . . 33 37 77 77 20 72 . . . 10 50 Level 2 14 | . . . 9 20 . 44 . . . . 9 44 Level 3 . | . . . . . . . . . . . . 4 Level 4 . | . . . . . . . . . . . . . Level 5 . | . . . . . . . . . . . . . High Security . | . . . . . . . . . . . . . Max Security . | . . . . . . . . . . . . . Squads Dispatched 21 | . . . 2 3 1 1 2 . 3 . 4 5 Investigation 6 | . . . 1 2 . . . . 1 . . 2 Extermination 6 | . . . . 1 1 . 2 . . . 1 1 Reinforcement 9 | . . . 1 . . 1 . . 2 . 3 2 Assault . | . . . . . . . . . . . . . Garrison . | . . . . . . . . . . . . . Intercept . | . . . . . . . . . . . . . Construction Impeded 3 | . . . . . . . . . . . 1 2 Haulers Reinforced 1 | . . . . . . . . . . . 1 . Stealth | -11 -10 -9 -8 -7 -6 -5 -4 -3 -3 -2 -2 -1 --------- Run | Scr Mat Mat Mat Fac Fac Fac Fac Res Qua Res Tes Acc Distress Signals 14 | . 1 . 8 1 . . . . 1 1 . 2 Communications Jammed . | . . . . . . . . . . . . . Distress Signals . | . . . . . . . . . . . . . Times Spotted 166 | . 4 9 36 10 5 6 7 11 8 4 17 49 Peak Tracking Total 21 | . 2 4 7 5 3 3 4 6 4 3 6 21 Tactical Retreats 27 | . 1 . 9 2 1 1 3 2 . . 1 7 Traps | -11 -10 -9 -8 -7 -6 -5 -4 -3 -3 -2 -2 -1 ------- Run | Scr Mat Mat Mat Fac Fac Fac Fac Res Qua Res Tes Acc Traps Triggered 7 | . . . 1 . . 1 . 1 1 1 . 2 Indirectly . | . . . . . . . . . . . . . Trap Hack Attempts . | . . . . . . . . . . . . . Triggered . | . . . . . . . . . . . . . Disarmed . | . . . . . . . . . . . . . Reprogrammed . | . . . . . . . . . . . . . Reused . | . . . . . . . . . . . . . Traps Extracted . | . . . . . . . . . . . . . Installed . | . . . . . . . . . . . . . Triggered . | . . . . . . . . . . . . . Machines | -11 -10 -9 -8 -7 -6 -5 -4 -3 -3 -2 -2 -1 ---------- Run | Scr Mat Mat Mat Fac Fac Fac Fac Res Qua Res Tes Acc Machines Disabled 10 | . . 2 . . . . . . 1 . 6 1 Max in Single Turn 2 | . . 1 . . . . . . 1 . 2 1 Garrison Access 3 | . . . . . . 1 . 1 . . . 1 Machines Sabotaged . | . . . . . . . . . . . . . Garrisons Compromised . | . . . . . . . . . . . . . Overloaded Fab Kills . | . . . . . . . . . . . . . Fab Network Shutdowns 2 | . . . . 1 . 1 . . . . . . Hacking | -11 -10 -9 -8 -7 -6 -5 -4 -3 -3 -2 -2 -1 --------- Run | Scr Mat Mat Mat Fac Fac Fac Fac Res Qua Res Tes Acc Machines Accessed 57 | . 4 4 . 12 7 7 8 3 4 3 2 3 Terminals 37 | . 3 4 . 8 4 2 4 2 4 3 1 2 Fabricators 9 | . . . . 3 3 1 1 . . . 1 . Repair Stations . | . . . . . . . . . . . . . Recycling Units 5 | . 1 . . . . 2 2 . . . . . Scanalyzers 2 | . . . . . . 1 1 . . . . . Garrison Access 4 | . . . . 1 . 1 . 1 . . . 1 Total Hacks 172 | . 11 16 . 43 22 18 24 9 12 8 5 4 Successful 117 | . 8 12 . 20 10 16 21 7 10 6 5 2 Failed 54 | . 3 4 . 23 12 2 3 1 2 2 . 2 Catastrophic 9 | . 1 . . 4 3 . . . . . . 1 Database Lockouts 1 | . . . . . . . . 1 . . . . Manual 103 | . 8 8 . 23 13 10 13 8 10 7 2 1 Terminals 127 | . 10 16 . 29 11 11 16 8 12 8 3 3 Fabricators 31 | . . . . 12 11 3 3 . . . 2 . Repair Stations . | . . . . . . . . . . . . . Recycling Units 7 | . 1 . . . . 2 4 . . . . . Scanalyzers 2 | . . . . . . 1 1 . . . . . Garrison Access 5 | . . . . 2 . 1 . 1 . . . 1 Terminal Hacks 64 | . 3 10 . 9 4 9 9 6 7 4 2 1 Record 1 | . . . . . . . 1 . . . . . Part Schematic 6 | . . 1 . 1 1 2 . . . 1 . . Robot Analysis 5 | . . . . . . 1 1 2 1 . . . Prototype ID Bank 6 | . . 3 . 1 . 1 . . . . 1 . Level Access Points 5 | . . . . 1 1 1 1 1 . . . . Branch Access Points 2 | . . . . . . . . . . 1 . 1 Machine Index 3 | . . . . . . . 1 1 1 . . . Terminal Index 3 | . . . . 1 1 1 . . . . . . Fabricator Index 2 | . . . . 1 1 . . . . . . . Repair Station Index 1 | . . . . . . 1 . . . . . . Alert Level 3 | . 1 . . 1 . . . . 1 . . . Unreport Threat 1 | . . . . . . . . 1 . . . . Locate Traps 6 | . . 2 . 1 . 1 1 . 1 . . . Patrol Status 3 | . . . . . . 1 . . 1 1 . . Recall Investigation 1 | . . . . . . . . . 1 . . . Recall Extermination 1 | . . . . . . . 1 . . . . . Hauler Manifests 6 | . 1 1 . 1 . . 1 . 1 1 . . Zone Layout 9 | . 1 3 . 1 . . 2 1 . . 1 . Fabricator Hacks 18 | . . . . 5 6 3 2 . . . 2 . Load Schematic 9 | . . . . 3 3 1 1 . . . 1 . Build 9 | . . . . 2 3 2 1 . . . 1 . Repair Station Hacks . | . . . . . . . . . . . . . Recycling Unit Hacks 5 | . 1 . . . . 2 2 . . . . . Retrieve Components 5 | . 1 . . . . 2 2 . . . . . Scanalyzer 2 | . . . . . . 1 1 . . . . . Insert Component 2 | . . . . . . 1 1 . . . . . Garrison Access Hacks 3 | . . . . . . 1 . 1 . . . 1 Seal Access 3 | . . . . . . 1 . 1 . . . 1 Unauthorized Hacks 25 | . 4 2 . 6 . . 7 . 3 2 1 . Terminals 22 | . 4 2 . 6 . . 4 . 3 2 1 . Track 16 | . 3 2 . 4 . . 2 . 3 1 1 . Assimilate 1 | . . . . . . . . . . 1 . . Botnet 3 | . 1 . . 1 . . 1 . . . . . Disrupt 1 | . . . . . . . 1 . . . . . Operators 1 | . . . . 1 . . . . . . . . Fabricators 1 | . . . . . . . 1 . . . . . Prioritize 1 | . . . . . . . 1 . . . . . Repair Stations . | . . . . . . . . . . . . . Recycling Units 2 | . . . . . . . 2 . . . . . Monitor 1 | . . . . . . . 1 . . . . . Recyclers 1 | . . . . . . . 1 . . . . . Scanalyzers . | . . . . . . . . . . . . . Garrison Access . | . . . . . . . . . . . . . Data Cores Recovered . | . . . . . . . . . . . . . Used . | . . . . . . . . . . . . . Hacking Detections 46 | . 4 4 . 11 6 4 4 2 4 3 2 2 Full Trace Events 2 | . . . . 2 . . . . . . . . Feedback Events 3 | . . . . 3 . . . . . . . . Corruption 1 | . . . . 1 . . . . . . . . Hackware Fried 2 | . . . . 2 . . . . . . . . Feedback Blocked . | . . . . . . . . . . . . . Robot Schematics Acquired . | . . . . . . . . . . . . . Robots Built . | . . . . . . . . . . . . . Matter . | . . . . . . . . . . . . . Time . | . . . . . . . . . . . . . Total Robot Build Rating . | . . . . . . . . . . . . . Part Schematics Acquired 6 | . . 1 . 1 1 2 . . . 1 . . Parts Built 9 | . . . . 2 3 2 1 . . . 1 . Matter 1981 | . . . . 292 636 424 212 . . . 417 . Time 505 | . . . . 60 159 106 106 . . . 74 . Total Part Build Rating 51 | . . . . 6 18 12 6 . . . 9 . Parts Repaired . | . . . . . . . . . . . . . Time . | . . . . . . . . . . . . . Parts Recycled . | . . . . . . . . . . . . . Recycled Matter . | . . . . . . . . . . . . . Retrieved Matter . | . . . . . . . . . . . . . Retrieved Components 9 | . 1 . . . . 3 5 . . . . . Parts Scanalyzed . | . . . . . . . . . . . . . Part Schematics Acquired . | . . . . . . . . . . . . . Parts Damaged . | . . . . . . . . . . . . . Bothacking | -11 -10 -9 -8 -7 -6 -5 -4 -3 -3 -2 -2 -1 ------------ Run | Scr Mat Mat Mat Fac Fac Fac Fac Res Qua Res Tes Acc Used RIF Installer . | . . . . . . . . . . . . . Robots Hacked . | . . . . . . . . . . . . . Non-combat . | . . . . . . . . . . . . . Combat . | . . . . . . . . . . . . . Robot Hacks Applied . | . . . . . . . . . . . . . Relay Couplers Released . | . . . . . . . . . . . . . Robots Rewired . | . . . . . . . . . . . . . Allies Hacked . | . . . . . . . . . . . . . Hacks Repelled . | . . . . . . . . . . . . . Allies | -11 -10 -9 -8 -7 -6 -5 -4 -3 -3 -2 -2 -1 -------- Run | Scr Mat Mat Mat Fac Fac Fac Fac Res Qua Res Tes Acc Total Allies 1 | . . . . . . . . . . 1 . . Largest Group 1 | . . . . . . . . . . 1 1 . Highest-Rated Group 26 | . . . . . . . . . . 26 26 . Highest-Rated Ally 26 | . . . . . . . . . . 26 26 . Total Orders 2 | . . . . . . . . . . . 2 . STAY 1 | . . . . . . . . . . . 1 . FOLLOW 1 | . . . . . . . . . . . 1 . Ally Attacks . | . . . . . . . . . . . . . Total Damage . | . . . . . . . . . . . . . Kills . | . . . . . . . . . . . . . Allies Corrupted . | . . . . . . . . . . . . . Allies Melted . | . . . . . . . . . . . . . Intel | -11 -10 -9 -8 -7 -6 -5 -4 -3 -3 -2 -2 -1 ------- Run | Scr Mat Mat Mat Fac Fac Fac Fac Res Qua Res Tes Acc Robot Analysis Total 5 | . . . . . . 1 1 2 1 . . . Derelict Logs Recovered . | . . . . . . . . . . . . . Drone Launches . | . . . . . . . . . . . . . Drone Recoveries . | . . . . . . . . . . . . . Exploration | -11 -10 -9 -8 -7 -6 -5 -4 -3 -3 -2 -2 -1 ------------- Run | Scr Mat Mat Mat Fac Fac Fac Fac Res Qua Res Tes Acc Turns Passed 6252 | 59 341 474 719 717 868 586 553 237 205 89 587 817 Spaces Moved 8231 | 47 316 351 475 1433 1444 964 1160 362 328 229 521 601 Core 339 | 4 . . 10 . . . . 58 . . . 267 Treads . | . . . . . . . . . . . . . Legs 587 | . . . 11 . . . . . . . 242 334 Wheels 1112 | 43 316 351 402 . . . . . . . . . Hover . | . . . . . . . . . . . . . Flight 6193 | . . . 52 1433 1444 964 1160 304 328 229 279 . Fastest Speed 26 | 50 90 86 34 34 34 32 28 30 26 32 32 50 Average Speed 49 | 86 90 90 91 34 34 32 31 48 31 32 81 87 Slowest Speed 150 | 90 90 110 150 34 34 37 32 150 35 32 150 120 Overloaded Moves 94 | . . . . . . . 66 16 12 . . . Propulsion Burnouts . | . . . . . . . . . . . . . Robots Hopped 42 | . . . 1 14 3 4 9 2 6 3 . . Cave-ins Triggered . | . . . . . . . . . . . . . Exploration Rate (%) 29 | 3 45 37 27 38 38 26 28 14 48 8 48 18 Regions Visited 12 Branch Regions 2 Pre-discovered Areas . | . . . . . . . . . . . . . Known Exits Taken 8 | . . . . 1 1 1 1 1 1 1 1 . Unknown Exits Taken 4 | 1 1 1 1 . . . . . . . . . Scrap Searched . | . . . . . . . . . . . . . Spaces Dug 100 | . 3 3 . 21 20 4 26 6 1 3 5 8 Terrain Destroyed 250 | . 3 3 . 21 20 4 26 7 1 3 116 46 Melee 88 | . . 3 . 21 20 4 26 . 1 1 4 8 Projectile 14 | . 3 . . . . . . 7 . 2 2 . AOE 148 | . . . . . . . . . . . 110 38 Terrain Rammed . | . . . . . . . . . . . . . Walls Destroyed . | . . . . . . . . . . . . . Machines Disabled . | . . . . . . . . . . . . . Actions | -11 -10 -9 -8 -7 -6 -5 -4 -3 -3 -2 -2 -1 --------- Run | Scr Mat Mat Mat Fac Fac Fac Fac Res Qua Res Tes Acc Total 9813 | 62 341 443 648 1596 1754 1218 1272 414 397 238 650 780 Wait 1005 | 6 3 22 64 121 256 227 86 31 46 8 71 64 Move 8139 | 46 315 350 472 1406 1437 956 1141 357 315 223 520 601 Hop 38 | . . . 1 12 3 3 9 2 6 2 . . Pick Up 42 | 4 2 6 4 7 6 5 2 1 3 . 1 1 Fast Attach 93 | 6 3 7 19 9 7 2 . 4 4 . 17 15 Attach 25 | . . 3 2 . 2 4 3 4 1 1 2 3 Detach 23 | . 1 . 2 2 2 2 . 4 2 1 4 3 Swap 15 | . . 4 . 3 3 2 . . . . . 3 Drop 72 | . 2 9 14 10 7 7 . 4 3 . 12 4 Fire 100 | . 15 26 11 . . . . 7 . 2 15 24 Melee 249 | . . 16 59 26 31 10 31 . 14 1 8 53 Ram 9 | . . . . . . . . . 3 . . 6 Kick 3 | . . . . . . . . . . . . 3 Crush . | . . . . . . . . . . . . . Escape Stasis . | . . . . . . . . . . . . . Rewire . | . . . . . . . . . . . . . Trap . | . . . . . . . . . . . . . Miscellaneous . | . . . . . . . . . . . . . Route ------- -11/Scrapyard -10/Materials (discovered 2 exits: *Mat x2) -9/Materials (discovered 4 exits: [*Mat] / [*Min] / [*Sto x2]) -8/Materials -7/Factory (discovered 5 exits: *Fac x4 / *Low) -6/Factory (discovered 5 exits: *Fac x4 / [*Low]) -5/Factory (discovered 5 exits: *Fac x4 / *Upp) -4/Factory (discovered 5 exits: *Res x4 / [*Upp]) -3/Research (discovered 4 exits: Res x3 / *Qua) -3/Quarantine -2/Research (discovered 2 exits: *Tes x2) -2/Testing -1/Access (discovered 1 exit: Com) History --------- Turn | Location | Event 25 | -11/Scrapyard | Discovered new exit (range 15) 60 | -11/Scrapyard | Entered Materials 218 | -10/Materials | Discovered new exit (range 9) 304 | -10/Materials | Build established: Mutant 322 | -10/Materials | Discovered new exit (range 4) 401 | -10/Materials | Entered another Materials area 401 | -9/Materials | Evolved 2 slots: Propulsion x1, Utility x1 470 | -9/Materials | Discovered new exit (range 4) 665 | -9/Materials | Discovered new exit (range 8) 703 | -9/Materials | Discovered new exit (range 14) 846 | -9/Materials | Discovered new exit (range 15) 875 | -9/Materials | Entered another Materials area 875 | -8/Materials | Evolved 2 slots: Utility x2 1060 | -8/Materials | Lost 3 parts (2n1u) 1565 | -8/Materials | Lost 4 parts (3n1u) 1589 | -8/Materials | Discovered new exit (range 15) 1594 | -8/Materials | Entered Factory 1594 | -7/Factory | Evolved 2 slots: Utility x2 1635 | -7/Factory | Identified exit to Factory 1954 | -7/Factory | Discovered new exit (range 5) 1955 | -7/Factory | Identified exit to Lower Caves 2089 | -7/Factory | Fabricated Hacking Suite (x1) 2188 | -7/Factory | Local fabrication network quarantined 2206 | -7/Factory | Fabricated Hacking Suite (x1) 2283 | -7/Factory | Hacking Suite fried by hacking feedback 2283 | -7/Factory | System Shield fried by hacking feedback 2311 | -7/Factory | Entered another Factory area 2311 | -6/Factory | Evolved 2 slots: Propulsion x1, Utility x1 2612 | -6/Factory | Identified exit to Factory 2660 | -6/Factory | Discovered new exit (range 13) 2669 | -6/Factory | Build established: Hacker-Scout 2924 | -6/Factory | Fabricated Adv. Hacking Suite (x1) 2978 | -6/Factory | Fabricated Adv. Hacking Suite (x1) 3110 | -6/Factory | Fabricated Adv. Hacking Suite? 3179 | -6/Factory | Entered another Factory area 3179 | -5/Factory | Evolved 2 slots: Power x1, Utility x1 3377 | -5/Factory | Fabricated Adv. Hacking Suite (x1) 3382 | -5/Factory | Local fabrication network quarantined 3430 | -5/Factory | Fabricated Adv. Hacking Suite (x1) 3528 | -5/Factory | Identified exit to Factory 3572 | -5/Factory | Discovered new exit (range 12) 3576 | -5/Factory | Identified exit to Upper Caves 3714 | -5/Factory | Build established: Wizard-Scout 3765 | -5/Factory | Entered another Factory area 3765 | -4/Factory | Evolved 2 slots: Utility x2 3998 | -4/Factory | Found Prototype Launcher 4042 | -4/Factory | Identified Scatter Rocket Array 4182 | -4/Factory | Spotted B-86 Titan 4260 | -4/Factory | Identified exit to Research 4302 | -4/Factory | Discovered new exit (range 11) 4313 | -4/Factory | Fabricated Adv. Hacking Suite? 4318 | -4/Factory | Entered Research 4318 | -3/Research | Evolved 2 slots: Propulsion x1, Utility x1 4511 | -3/Research | Identified exit to Research 4539 | -3/Research | Central database locked down 4549 | -3/Research | Discovered new exit (range 16) 4555 | -3/Research | Identified exit to Quarantine 4555 | -3/Research | Entered Quarantine 4571 | -3/Quarantine | Lost 7 parts (1p2n4u) 4578 | -3/Quarantine | Found Prototype Slashing Weapon 4607 | -3/Quarantine | Found Prototype Launcher 4624 | -3/Quarantine | Identified Molecular Scythe 4737 | -3/Quarantine | Found Alien Artifact 4737 | -3/Quarantine | Identified Stasis Generator 4756 | -3/Quarantine | Discovered exit to Research (range 5) 4760 | -3/Quarantine | Entered Research 4760 | -2/Research | Evolved 2 slots: Propulsion x1, Utility x1 4791 | -2/Research | Identified exit to Testing 4849 | -2/Research | Entered Testing 4849 | -2/Testing | Accompanied by 1 ally 4860 | -2/Testing | Build established: Wizard-Sprinter 4936 | -2/Testing | Fabricated Femtoactuators (x1) 4982 | -2/Testing | Found Prototype Launcher 4982 | -2/Testing | Identified Z-bomb Delivery System 5018 | -2/Testing | Found Prototype Energy Cannon 5018 | -2/Testing | Identified Potential Cannon 5029 | -2/Testing | Spotted Striker 5047 | -2/Testing | Found Prototype Device 5047 | -2/Testing | Identified EM Disruption Field 5132 | -2/Testing | Found Prototype Energy Cannon 5132 | -2/Testing | Identified Imp. Potential Cannon 5213 | -2/Testing | P-80 Master assimilated allied Administrator 9a 5334 | -2/Testing | Found Prototype Launcher 5334 | -2/Testing | Identified Adv. Micro-nuke Launcher 5420 | -2/Testing | Discovered new exit (range 8) 5435 | -2/Testing | Identified exit to Access 5436 | -2/Testing | Entered Access 5436 | -1/Access | Evolved 2 slots: Utility x1, Weapon x1 5459 | -1/Access | Lost 6 parts (1p1n3u1w) 5531 | -1/Access | Build established: Hacker-Mutant 5663 | -1/Access | Lost 3 parts (2p1n) 6096 | -1/Access | Lost 7 parts (1p2n1u3w) 6167 | -1/Access | Identified exit to Command 6200 | -1/Access | Core integrity fell below 50% 6232 | -1/Access | Lost 4 parts (2n2u) 6234 | -1/Access | Core integrity fell below 20% 6253 | -1/Access | Destroyed by H-88 Terminator with Heavy Machine Gun Last Messages --------------- Map updated. 06180_ Hdn. Centrium Leg destroyed. 06187_ K-01 Serf destroyed. 06187_ K-01 Serf collects debris. 06188_ Hacking Suite destroyed. 06195_ System corrupted: Component data lost. 06197_ Adv. Heavy Siege Treads destroyed. 06201_ Adv. Hacking Suite destroyed. 06219_ AQY=J70P1JMD2,UU IH3 A%CQSHLK/WIA,K 06232_ Triggered Alarm Trap. 06232_ An alarm sounds. 06232_ ALERT: Alarm triggered, dispatching investigation squad. 06239_ System corrupted: Matter fused (-9). 06241_ W-44 Eye sends out distress signal. 06245_ Slug penetrates Wall. 06249_ Slug penetrates Terminal. 06249_ Terminal disabled. 06249_ Penetrated by Slug. 06252_ Slammed into H-88 Terminator. 06252_ Penetrated by Slug. Map ----- +----------------------------------------------------+ | #??????# #????????????????????? | | #??????# #????????????????????? | | ######## #??????# #????????????????????? | | ???????? #??????# #????????????????????? | | ???????? #??????# #????????????????????? | | ???????? #??????# #?########???????????? | | ???????? #??????# #? |#???????????? | | ???????? #??????# # #???????????? | | ???????? #??????# # #???????????? | | ???????# #??????+ + #???????????? | | ???????# ???????# # #???????????? | | ???????# ???????# # #???????????? | | ??????## ???????# #? #???????????? | | ??????# ??????# #? #???????????? | | ??????# ####### #?? #???????????? | | ??????# #??#######???????????? | | ??????# #????????????????????? | | ??????+ #????????????????????? | | ??????# #????????????????????? | | ??????# #????????????????????? | | ??????# ###s#########????????????????????? | | ??????# ?# "" #???????????????????????? | | ??????#######???# "T" #???????????????????????? | | ??????########### " " #???????????????????????? | | ####### ## s h##### ????????? | | # ## h @ Y ????????? | | # " ## !##### """????????????? | | # """ ## = #???????????????????????? | | ! # """ ## #???????????????????????? | | #/##### " ## ! #???????????????????????? | | + ###########???????????????????????? | | ####### ! #?????????????????????????????????? | | ##????# #?????????????????????????????????? | | #######/#######?????????????????????????????????? | | #######???????????????????????????????? | | / ?????????????????????????? | | #######???????????????????????????????? | | #######/#########???????????????????????????????? | | ##?????# """" #???????????????????????????????? | | ???????# ""R" #???????????????????????????????? | | ???????# "" " #???????????????????????????????? | | ???????# #???????????????????????????????? | | ??###### ! #???????????????????????????????? | | ### ## #???????????????????????????????? | | ! / #???????????????????????????????? | | ###!! ## #???????????????????????????????? | | ??## #############???????????????????????????????? | | ???# #???????????????????????????????????????????? | | ?? # #???????????????????????????????????????????? | | # #???????????????????????????????????????????? | +----------------------------------------------------+ Best States ------------- Heat Dissipation 52 Energy Generation 32 Energy Capacity 2755 Matter Stores 300 Matter Capacity 300 Sight Range 22 Robot Scan Range 20 Terrain Scan Density 10 Armor Coverage 150 Resistance: EM 50 Phase Shifting 15 Evasion (%) 64 Targeting Accuracy 8 Melee Accuracy 6 Offensive Hacking 70 Defensive Hacking 26 Item Schematics ----------------- VTOL Module | -9/Materials | Hacked Hacking Suite | -7/Factory | Hacked Adv. Hacking Suite | -6/Factory | Hacked Nuclear Pulse Array | -5/Factory | Hacked Lrn. Sensor Array | -5/Factory | Hacked Femtoactuators | -2/Research | Hacked Robot Schematics ------------------ None Fabricated ------------ Hacking Suite | x1 | -7/Factory Hacking Suite | x1 | -7/Factory Adv. Hacking Suite | x1 | -6/Factory Adv. Hacking Suite | x1 | -6/Factory Adv. Hacking Suite | x1 | -6/Factory Adv. Hacking Suite | x1 | -5/Factory Adv. Hacking Suite | x1 | -5/Factory Adv. Hacking Suite | x1 | -4/Factory Femtoactuators | x1 | -2/Testing Alien Tech Used ----------------- Stasis Generator Achievements -------------- None Challenges ------------ None Game ------ Seed HellfireGyrokineticCannon Manual? 0 Play Time 01:35:01 Cumulative 260.7 hours Start 2021.06.06 @ 12:40:53 End 2021.06.06 @ 14:47:31 Sessions 1 Manual Loads 0 Difficulty Rogue Special Mode None Game No. 351 Rogue 347 Adventurer 0 Explorer 4 Win Type - Total 5 Types 4/0/0/1/0/0/0/0/0 Lore% 79 Gallery% 88 Achievement% 62 Wizard Run 0 Options --------- ASCII 1 Keyboard 1 Movement Numpad Keybinds 0 Fullscreen 2 Font 18/CogWide Map View 76x50 Tactical HUD 1 Map Filters NONE Filters NONE Steam X RUN: 2c62cd93-cb5f-41ac-bb1f-cefc0ad3f10d